bitfinex-derivatives/quotes_BNBF0:USTF0_20250401
["timestamp","ask_amount","ask_price","bid_price","bid_amount"]
[1743550414510,1.08,611.86,611.62,1.22724802]
[1743550416607,1.08,611.86,611.77,1.22724802]
[1743550418807,1.08,611.86,611.75,1.22724802]
[1743550420204,1.08,611.86,611.66,1.22724802]
[1743550423212,1.08,611.86,611.63,1.22724802]
[1743550423810,0.28445898,612.1,611.63,1.22724802]
[1743550425106,0.28445898,612.1,611.37,0.32713414]
[1743550425107,0.28445898,612.1,611.62,1.22724802]
[1743550426708,1.05,612.21,611.61,1.22724802]
[1743550427015,0.28442294,612.1,611.61,1.22724802]
[1743550427319,0.734,612.09,611.61,1.22724802]
[1743550429321,0.734,612.09,611.37,0.32713414]
[1743550429322,0.734,612.09,611.6,1.22724802]
[1743550430918,0.28446246,612.08,611.6,1.22724802]
[1743550432119,0.28446246,612.08,611.37,0.32713414]
[1743550432818,0.734,612.09,611.37,0.32713414]
[1743550433914,0.28449618,612.08,611.37,0.32713414]
[1743550435624,0.734,612.09,611.37,0.32713414]
[1743550435923,0.28450665,612.07,611.37,0.32713414]
[1743550438518,0.734,612.09,611.37,0.32713414]
[1743550438918,0.28451595,612.06,611.37,0.32713414]
[1743550441732,0.734,612.09,611.39,1.22724802]
[1743550441926,0.28451712,612.05,611.39,1.22724802]
[1743550444435,0.28451712,612.05,611.44,1.22724802]
[1743550444732,0.734,612.09,611.44,1.22724802]
[1743550444933,0.28448804,612.04,611.44,1.22724802]
[1743550446434,0.28448804,612.04,611.39,1.22724802]
[1743550447633,0.734,612.09,611.39,1.22724802]
[1743550448029,0.28449386,612.03,611.39,1.22724802]
[1743550448631,0.28449386,612.03,611.41,1.22724802]
[1743550450733,1.05,612.21,611.41,1.22724802]
[1743550450934,0.28449386,612.02,611.41,1.22724802]
[1743550451134,0.28449386,612.02,611.37,0.32713414]
[1743550451135,0.28449386,612.02,611.46,1.22724802]
[1743550451429,1.05,612.21,611.46,1.22724802]
[1743550451631,0.30044375,612.2,611.46,1.22724802]
[1743550451834,1.18344375,612.2,611.46,1.22724802]
[1743550452028,0.30044375,612.19,611.46,1.22724802]
[1743550452832,1.16748804,612.2,611.46,1.22724802]
[1743550453235,0.30044534,612.19,611.46,1.22724802]
[1743550453834,0.30044534,612.19,611.43,1.22724802]
[1743550454034,0.28448921,612.18,611.43,1.22724802]
[1743550454239,0.30044534,612.17,611.43,1.22724802]
[1743550455439,0.30044534,612.17,611.47,1.22724802]
[1743550456836,0.30044534,612.16,611.47,1.22724802]
[1743550457041,0.30044534,612.15,611.47,1.22724802]
[1743550457542,0.30044534,612.15,611.46,1.22724802]
[1743550460137,0.30044534,612.15,611.53,1.22724802]
[1743550462239,0.30044534,612.15,611.37,0.32713414]
[1743550462240,0.30044534,612.15,611.44,1.22724802]
[1743550464045,0.30044534,612.15,611.42,1.22724802]
[1743550465846,0.30044534,612.14,611.42,1.22724802]
[1743550466149,0.30044534,612.13,611.41,1.22724802]
[1743550467148,0.28450549,612.14,611.41,1.22724802]
[1743550467348,0.30046938,612.13,611.41,1.22724802]
[1743550468753,0.883,612.2,611.41,1.22724802]
[1743550469051,0.28452759,612.12,611.41,1.22724802]
[1743550469251,0.30049569,612.11,611.41,1.22724802]
[1743550469752,0.58502793,612.1,611.41,1.22724802]
[1743550469950,0.30049569,612.09,611.41,1.22724802]
[1743550470351,0.28453224,612.1,611.41,1.22724802]
[1743550470547,0.30051288,612.09,611.41,1.22724802]
[1743550470952,0.30051288,612.09,611.35,1.22724802]
[1743550472053,0.58505908,612.08,611.35,1.22724802]
[1743550472256,0.30051288,612.07,611.35,1.22724802]
[1743550472850,1.0675462,612.08,611.35,1.22724802]
[1743550473056,0.30053792,612.07,611.35,1.22724802]
[1743550473453,1.0675462,612.08,611.35,1.22724802]
[1743550473653,1.0675462,612.08,611.32,1.22724802]
[1743550473654,0.30056417,612.07,611.32,1.22724802]
[1743550474952,0.28458459,612.06,611.32,1.22724802]
[1743550475157,0.30056417,612.05,611.01,1.22724802]
[1743550477862,0.30056417,612.05,611.05,1.22724802]
[1743550478159,0.58519881,612.04,611.05,1.22724802]
[1743550478354,0.30056417,612.03,611.05,1.22724802]
[1743550478758,1.084,612.02,611.05,1.22724802]
[1743550478955,0.30056417,612.01,611.05,1.22724802]
[1743550479456,0.30056417,612.01,610.97,1.22724802]
[1743550479655,1.084,612.02,610.97,1.22724802]
[1743550479861,0.30062398,612.01,610.97,1.22724802]
[1743550480757,0.32679738,612.0,610.97,1.22724802]
[1743550480956,0.30062398,611.99,610.97,1.22724802]
[1743550481157,0.32680272,611.99,610.97,1.22724802]
[1743550481461,0.30064717,611.98,610.97,1.22724802]
[1743550481656,0.30064717,611.98,610.73,1.22724802]
[1743550484359,0.32680272,611.99,610.73,1.22724802]
[1743550484559,0.30066116,611.98,610.64,1.22724802]
[1743550485262,0.30066116,611.98,610.65,0.32751985]
[1743550486866,0.28470915,611.97,610.65,0.32751985]
[1743550487066,0.30066116,611.96,610.65,0.32751985]
[1743550489860,0.30066116,611.95,610.65,0.32751985]
[1743550490066,0.30066116,611.94,610.65,0.32751985]
[1743550490267,0.30066116,611.93,610.68,1.22724802]
[1743550490462,0.30066116,611.98,610.69,0.3274984]
[1743550490664,0.30066116,611.97,610.69,0.3274984]
[1743550490866,0.30066116,611.96,610.69,0.3274984]
[1743550491063,0.28469984,611.97,610.69,0.3274984]
[1743550491267,0.30066116,611.96,610.69,0.3274984]
[1743550492265,0.30067168,611.95,610.69,0.3274984]
[1743550492466,0.30067168,611.96,610.69,0.3274984]
[1743550492663,0.30067168,611.95,610.69,0.3274984]
[1743550492867,0.30067168,611.96,610.69,0.3274984]
[1743550493067,1.03567168,611.95,610.69,0.3274984]
[1743550493266,0.30067168,611.94,610.69,0.3274984]
[1743550494472,0.735,611.95,610.7,0.26822145]
[1743550494674,0.735,611.95,610.72,0.32748231]
[1743550494874,0.735,611.95,610.73,0.26822145]
[1743550495075,0.735,611.95,610.75,0.32746623]
[1743550495571,0.735,611.95,610.76,0.26821232]
[1743550495772,0.735,611.95,610.78,0.32745014]
[1743550495972,0.735,611.95,610.79,0.26821232]
[1743550496172,0.735,611.95,610.81,0.32743406]
[1743550496372,0.735,611.95,610.82,0.26821232]
[1743550496575,0.735,611.95,610.84,0.32741798]
[1743550496776,0.735,611.95,610.85,0.26821232]
[1743550496976,0.735,611.95,610.87,0.3274019]
[1743550497273,0.735,611.95,610.88,0.26821232]
[1743550497573,0.735,611.95,610.9,0.32738582]
[1743550497974,0.735,611.95,610.91,0.2682131]
[1743550498169,0.735,611.95,610.93,0.32736974]
[1743550498374,0.735,611.95,611.11,1.22724802]
[1743550498574,0.735,611.95,611.12,0.32726796]
[1743550500675,0.735,611.95,611.12,1.55451598]
[1743550503079,0.735,611.95,611.2,1.22724802]
[1743550504775,0.735,611.95,611.21,0.32721977]
[1743550505680,0.735,611.95,611.21,1.55446779]
[1743550508381,0.735,611.95,611.21,0.32721977]
[1743550511481,0.735,611.95,611.22,0.26815567]
[1743550512285,0.735,611.95,611.23,0.32720907]
[1743550528698,0.735,611.95,611.35,1.22724802]
[1743550531005,0.735,611.95,611.63,1.22724802]
[1743550531407,1.084,612.02,611.63,1.22724802]
[1743550532008,0.28448107,612.01,611.63,1.22724802]
[1743550533109,1.084,612.02,611.63,1.22724802]
[1743550533309,1.084,612.02,611.7,1.22724802]
[1743550535606,0.28443805,612.09,611.7,1.22724802]
[1743550536709,0.28443805,612.09,611.77,1.22724802]
[1743550537707,0.956,612.16,611.77,1.22724802]
[1743550538111,0.28441364,612.15,611.77,1.22724802]
[1743550538508,0.28441364,612.15,611.68,1.22724802]
[1743550539316,1.169,612.14,611.68,1.22724802]
[1743550540909,0.28442643,612.13,611.68,1.22724802]
[1743550543519,0.28442643,612.13,611.23,0.32720907]
[1743550543520,0.28442643,612.13,611.61,1.22724802]
[1743550543712,1.169,612.14,611.61,1.22724802]
[1743550543917,0.28443108,612.12,611.61,1.22724802]
[1743550545719,0.28443108,612.12,611.54,1.22724802]
[1743550546622,1.169,612.14,611.54,1.22724802]
[1743550546921,0.28446595,612.11,611.54,1.22724802]
[1743550548122,0.28446595,612.11,611.47,1.22724802]
[1743550550022,0.28446595,612.11,611.45,1.22724802]
[1743550552324,0.28446595,612.11,611.41,1.22724802]
[1743550552723,1.169,612.14,611.41,1.22724802]
[1743550553023,0.28448572,612.1,611.41,1.22724802]
[1743550554720,0.28448572,612.1,611.34,1.22724802]
[1743550555719,1.169,612.14,611.34,1.22724802]
[1743550557028,0.28450549,612.13,611.31,1.22724802]
[1743550558626,1.169,612.14,611.31,1.22724802]
[1743550558827,1.169,612.14,611.23,0.32720907]
[1743550558828,1.169,612.14,611.29,1.22724802]
[1743550559022,0.28450898,612.12,611.29,1.22724802]
[1743550561330,0.28450898,612.12,611.23,1.55445709]
[1743550561730,1.169,612.14,611.23,1.55445709]
[1743550561930,1.11,612.11,611.23,1.55445709]
[1743550562230,1.39453224,612.11,611.23,1.55445709]
[1743550563730,1.39453224,612.11,611.23,0.32720907]
[1743550564636,1.11,612.11,611.23,0.32720907]
[1743550565936,0.28454154,612.1,611.23,0.32720907]
[1743550567631,1.11,612.11,611.23,0.32720907]
[1743550568140,0.28456714,612.1,611.23,0.32720907]
[1743550570738,1.11,612.11,611.23,0.32720907]
[1743550571339,0.28456947,612.09,611.23,0.32720907]
[1743550571534,0.30048608,612.08,611.23,0.32720907]
[1743550574032,0.58507067,612.07,611.15,1.22724802]
[1743550574234,0.30048608,612.06,611.15,1.22724802]
[1743550574435,0.30048608,612.06,611.22,1.22724802]
[1743550576136,0.844,612.05,611.22,1.22724802]
[1743550576341,0.30048608,612.04,611.22,1.22724802]
[1743550576942,0.30048608,612.04,611.2,1.22724802]
[1743550577140,0.2845811,612.03,611.2,1.22724802]
[1743550577341,0.30048608,612.02,611.2,1.22724802]
[1743550579741,0.30048608,612.02,610.73,1.47269763]
[1743550579742,0.30048608,612.02,611.14,1.22724802]
[1743550580045,0.58507184,612.01,611.14,1.22724802]
[1743550580244,0.30048608,612.0,611.14,1.22724802]
[1743550580443,1.36348608,612.0,611.14,1.22724802]
[1743550580645,0.30048608,611.99,611.14,1.22724802]
[1743550581745,1.063,612.0,611.13,1.22724802]
[1743550583042,0.28459739,611.99,611.13,1.22724802]
[1743550583649,1.063,612.0,611.13,1.22724802]
[1743550584451,1.063,612.0,610.62,1.47269763]
[1743550584452,1.063,612.0,611.11,1.22724802]
[1743550586546,1.063,612.0,611.0,1.22724802]
[1743550588451,0.28461252,611.99,611.0,1.22724802]
[1743550589856,0.28461252,611.99,611.02,1.22724802]
[1743550591662,1.063,612.0,611.02,1.22724802]
[1743550592162,0.28461019,611.98,611.02,1.22724802]
[1743550592762,0.28461019,611.98,611.05,1.22724802]
[1743550594460,0.28461019,611.98,611.07,1.22724802]
[1743550595662,1.136,611.97,611.07,1.22724802]
[1743550596263,1.136,611.97,611.05,1.22724802]
[1743550598667,1.136,611.97,611.01,1.22724802]
[1743550600468,1.136,611.97,611.03,1.22724802]
[1743550602163,1.136,611.97,611.04,1.22724802]
[1743550604170,1.136,611.97,611.06,1.22724802]
[1743550604968,0.28462998,611.96,611.06,1.22724802]
[1743550605972,0.28462998,611.96,611.1,1.22724802]
[1743550606170,0.30057901,611.95,611.1,1.22724802]
[1743550606571,0.28462998,611.96,611.1,1.22724802]
[1743550606873,0.30057885,611.95,611.1,1.22724802]
[1743550608673,0.30057885,611.95,611.37,1.22724802]
[1743550610475,0.30057885,611.95,610.9,2.50563138]
[1743550610476,0.30057885,611.95,611.1,1.22724802]
[1743550611277,0.28462998,611.96,611.1,1.22724802]
[1743550611472,0.30062123,611.95,611.1,1.22724802]
[1743550612573,0.30062123,611.95,611.05,1.22724802]
[1743550612978,0.30063219,611.94,611.05,1.22724802]
[1743550613180,0.28466025,611.94,611.05,1.22724802]
[1743550613376,0.30063219,611.93,611.05,1.22724802]
[1743550614679,0.30063219,611.93,610.98,1.22724802]
[1743550615179,0.3268401,611.92,610.98,1.22724802]
[1743550615380,0.30063219,611.91,610.98,1.22724802]
[1743550615681,0.32685079,611.9,610.98,1.22724802]
[1743550615880,0.30063219,611.89,610.98,1.22724802]
[1743550616076,0.32686147,611.88,610.98,1.22724802]
[1743550616278,0.30063219,611.87,610.98,1.22724802]
[1743550616476,0.32687216,611.86,610.98,1.22724802]
[1743550616675,0.32687216,611.86,610.78,1.22724802]
[1743550616676,0.30063219,611.85,610.78,1.22724802]
[1743550616982,0.32688284,611.84,610.78,1.22724802]
[1743550617182,0.30063219,611.83,610.78,1.22724802]
[1743550617383,0.32689353,611.82,610.78,1.22724802]
[1743550617786,0.30073912,611.81,610.78,1.22724802]
[1743550617981,0.32690421,611.8,610.78,1.22724802]
[1743550618284,0.30073912,611.79,610.78,1.22724802]
[1743550618485,0.62764868,611.79,610.78,1.22724802]
[1743550618685,0.30073912,611.78,610.78,1.22724802]
[1743550618891,0.30073912,611.78,610.67,1.22724802]
[1743550619189,0.28475808,611.78,610.67,1.22724802]
[1743550619388,0.30074454,611.77,610.67,1.22724802]
[1743550620791,0.30075139,611.76,610.67,1.22724802]
[1743550621187,0.30075139,611.76,610.62,1.22724802]
[1743550622189,0.28478371,611.75,610.62,1.22724802]
[1743550622389,0.30075139,611.74,610.62,1.22724802]
[1743550623194,0.30075139,611.74,610.61,1.22724802]
[1743550624886,0.30075139,611.76,610.61,1.22724802]
[1743550625092,0.28475225,611.73,610.61,1.22724802]
[1743550625291,0.30075139,611.72,610.61,1.22724802]
[1743550625496,0.30075139,611.72,610.64,1.22724802]
[1743550626496,1.05,611.71,610.64,1.22724802]
[1743550626798,0.30073439,611.7,610.64,1.22724802]
[1743550627898,0.28478371,611.69,610.62,1.22724802]
[1743550628101,0.30073439,611.68,610.62,1.22724802]
[1743550629800,0.28478371,611.69,610.62,1.22724802]
[1743550630000,0.30072458,611.68,610.62,1.22724802]
[1743550630701,0.30072458,611.68,610.32,1.22724802]
[1743550630702,0.30072458,611.68,610.59,1.22724802]
[1743550631001,0.30072458,611.67,610.59,1.22724802]
[1743550631203,0.30072458,611.66,610.59,1.22724802]
[1743550631501,0.30072361,611.65,610.59,1.22724802]
[1743550631702,0.28478954,611.67,610.59,1.22724802]
[1743550631902,0.30072773,611.66,610.59,1.22724802]
[1743550633101,0.30072773,611.66,610.21,1.22724802]
[1743550633102,0.30072803,611.65,610.6,1.22724802]
[1743550633401,0.28478954,611.67,610.6,1.22724802]
[1743550633601,0.30072942,611.66,610.6,1.22724802]
[1743550634104,0.58552245,611.65,610.6,1.22724802]
[1743550634303,0.30072942,611.64,610.6,1.22724802]
[1743550634504,0.28479303,611.65,610.6,1.22724802]
[1743550635505,0.28479303,611.65,610.57,1.22724802]
[1743550636803,1.05,611.71,610.57,1.22724802]
[1743550637105,0.28476157,611.64,610.57,1.22724802]
[1743550637699,1.056,611.63,610.57,1.22724802]
[1743550638305,1.056,611.63,609.73,2.50563138]
[1743550638306,1.056,611.63,610.68,1.22724802]
[1743550640005,0.28475808,611.62,610.68,1.22724802]
[1743550640605,0.28475808,611.62,610.74,1.55471961]
[1743550642712,1.056,611.63,610.74,1.55471961]
[1743550643111,1.056,611.63,610.87,1.22724802]
[1743550643316,0.28475109,611.62,610.87,1.22724802]
[1743550645117,0.28475109,611.62,610.9,1.22724802]
[1743550645717,1.056,611.63,610.9,1.22724802]
[1743550646118,0.28473245,611.62,610.9,1.22724802]
[1743550647519,0.28473245,611.62,610.74,0.32747159]
[1743550647520,0.28473245,611.62,610.93,1.22724802]
[1743550648817,1.056,611.63,610.93,1.22724802]
[1743550649222,0.28472896,611.61,610.93,1.22724802]
[1743550650323,0.28472896,611.61,611.04,1.22724802]
[1743550651316,0.30066463,611.6,611.04,1.22724802]
[1743550651917,0.30066463,611.62,611.04,1.22724802]
[1743550652122,0.28471847,611.59,611.04,1.22724802]
[1743550652322,0.28471847,611.59,610.75,1.05241501]
[1743550652323,0.28471847,611.59,611.06,1.22724802]
[1743550654821,0.795,611.61,611.06,1.22724802]
[1743550655225,0.28471614,611.58,611.06,1.22724802]
[1743550657827,0.795,611.61,611.06,1.22724802]
[1743550658020,0.795,611.61,611.02,1.22724802]
[1743550658223,0.28470217,611.57,611.02,1.22724802]
[1743550660031,0.28470217,611.57,610.99,1.22724802]
[1743550662230,0.28470217,611.57,610.89,1.22724802]
[1743550663726,0.795,611.61,610.89,1.22724802]
[1743550664233,0.28475225,611.6,610.89,1.22724802]
[1743550666833,0.795,611.61,610.89,1.22724802]
[1743550667230,0.28475225,611.59,610.82,1.22724802]
[1743550669134,0.28475225,611.59,610.74,0.32747159]
[1743550669135,0.28475225,611.59,610.76,1.22724802]
[1743550669735,0.795,611.61,610.76,1.22724802]
[1743550670235,0.28477905,611.58,610.76,1.22724802]
[1743550672035,0.28477905,611.58,610.74,0.32747159]
[1743550672036,0.28477905,611.58,610.75,1.22724802]
[1743550672735,1.167,611.6,610.75,1.22724802]
[1743550673035,0.28478138,611.57,610.75,1.22724802]
[1743550674136,0.28478138,611.57,610.77,1.22724802]
[1743550675936,1.167,611.6,610.77,1.22724802]
[1743550676135,0.28477905,611.56,610.77,1.22724802]
[1743550676336,0.28477905,611.56,610.79,1.22724802]
[1743550678331,0.28477905,611.56,610.74,0.32747159]
[1743550678332,0.28477905,611.56,610.83,1.22724802]
[1743550678732,0.85,611.59,610.83,1.22724802]
[1743550679030,0.28475458,611.55,610.83,1.22724802]
[1743550680733,0.28475458,611.55,610.98,1.22724802]
[1743550683138,0.28475458,611.55,610.96,1.22724802]
[1743550684937,0.85,611.59,610.96,1.22724802]
[1743550685534,0.85,611.59,610.97,1.22724802]
[1743550686138,0.28473827,611.58,610.97,1.22724802]
[1743550687939,0.85,611.59,610.97,1.22724802]
[1743550688141,0.28473827,611.57,610.97,1.22724802]
[1743550690838,1.167,611.6,610.97,1.22724802]
[1743550691036,0.28472779,611.56,611.04,1.22724802]
[1743550691637,0.30067721,611.55,611.04,1.22724802]
[1743550691943,1.34567721,611.55,611.04,1.22724802]
[1743550692139,0.30067721,611.54,611.04,1.22724802]
[1743550694147,0.28472546,611.53,611.14,1.22724802]
[1743550694346,0.30067721,611.52,611.14,1.22724802]
[1743550694845,0.28472546,611.53,611.14,1.22724802]
[1743550696540,0.28472546,611.53,611.16,1.22724802]
[1743550698747,0.30067721,611.52,611.16,1.22724802]
[1743550699145,0.30067721,611.52,611.17,1.22724802]
[1743550700044,0.28471265,611.51,611.17,1.22724802]
[1743550700552,0.30067721,611.5,611.17,1.22724802]
[1743550701251,0.28471265,611.51,611.17,1.22724802]
[1743550701450,0.28471265,611.51,611.19,1.22724802]
[1743550702848,1.045,611.55,611.19,1.22724802]
[1743550703046,0.28470799,611.5,611.19,1.22724802]
[1743550704353,0.28470799,611.5,611.03,1.22724802]
[1743550705746,1.045,611.55,611.03,1.22724802]
[1743550706149,0.28475458,611.49,611.03,1.22724802]
[1743550706552,0.28475458,611.49,610.48,1.47269763]
[1743550706553,0.28475458,611.49,610.96,1.22724802]
[1743550708748,1.167,611.6,610.93,1.22724802]
[1743550709148,0.2847639,611.48,610.93,1.22724802]
[1743550709547,1.167,611.6,610.93,1.22724802]
[1743550710347,0.2847674,611.59,610.93,1.22724802]
[1743550710754,0.787,611.58,610.93,1.22724802]
[1743550711051,0.787,611.58,610.73,1.22724802]
[1743550712050,0.28479303,611.57,610.73,1.22724802]
[1743550713758,0.28479303,611.57,610.74,1.55471961]
[1743550714755,0.787,611.58,610.74,1.55471961]
[1743550715056,0.28478488,611.56,610.74,1.55471961]
[1743550716457,0.28478488,611.56,610.8,1.22724802]
[1743550717558,0.30073706,611.55,610.8,1.22724802]
[1743550718257,0.28478488,611.56,610.8,1.22724802]
[1743550718459,0.30076083,611.55,610.8,1.22724802]
[1743550718856,0.30076083,611.55,610.81,1.22724802]
[1743550721160,0.58554687,611.54,610.77,1.22724802]
[1743550721360,0.30076083,611.53,610.77,1.22724802]
[1743550721958,1.079,611.52,610.77,1.22724802]
[1743550722158,0.30076083,611.51,610.77,1.22724802]
[1743550722863,0.30076083,611.51,610.76,1.22724802]
[1743550724664,0.30076083,611.51,610.85,1.22724802]
[1743550726963,0.30076083,611.51,610.88,1.22724802]
[1743550727168,0.28476856,611.5,610.88,1.22724802]
[1743550727366,0.30076083,611.49,610.88,1.22724802]
[1743550728166,0.28476856,611.5,610.88,1.22724802]
[1743550729374,0.28476856,611.5,610.81,1.22724802]
[1743550729771,1.079,611.52,610.81,1.22724802]
[1743550730173,0.28477206,611.49,610.81,1.22724802]
[1743550732072,0.28477206,611.49,610.76,1.22724802]
[1743550732772,1.079,611.52,610.76,1.22724802]
[1743550734271,0.28477789,611.51,610.76,1.22724802]
[1743550734776,0.28477789,611.51,610.78,1.22724802]
[1743550735874,1.079,611.52,610.78,1.22724802]
[1743550736377,0.28477556,611.5,610.78,1.22724802]
[1743550737080,0.28477556,611.5,610.8,1.22724802]
[1743550738479,1.085,611.49,610.8,1.22724802]
[1743550739779,1.085,611.49,609.98,2.50563138]
[1743550739780,1.085,611.49,610.88,1.22724802]
[1743550742074,1.085,611.49,610.96,1.22724802]
[1743550744480,1.085,611.49,610.98,1.22724802]
[1743550745085,0.28475575,611.48,610.98,1.22724802]
[1743550746384,0.28475575,611.48,610.97,1.22724802]
[1743550747787,1.085,611.49,610.97,1.22724802]
[1743550748187,0.28474293,611.48,610.97,1.22724802]
[1743550748988,0.28474293,611.48,610.98,1.22724802]
[1743550750888,1.085,611.49,610.98,1.22724802]
[1743550751289,0.28474177,611.47,610.99,1.22724802]
[1743550753089,0.28474177,611.47,611.01,1.22724802]
[1743550753793,1.085,611.49,611.01,1.22724802]
[1743550754187,0.28473827,611.46,611.01,1.22724802]
[1743550755493,0.28473827,611.46,610.4,2.50563138]
[1743550755494,0.28473827,611.46,611.02,1.22724802]
[1743550756900,0.895,611.47,611.02,1.22724802]
[1743550757093,0.28473944,611.45,611.02,1.22724802]
[1743550758001,0.28473944,611.45,611.09,1.22724802]
[1743550759801,0.895,611.47,611.08,1.22724802]
[1743550760100,0.28473128,611.44,611.08,1.22724802]
[1743550762302,0.28473128,611.44,610.57,1.05307901]
[1743550762303,0.28473128,611.44,611.1,1.22724802]
[1743550762803,0.895,611.47,611.1,1.22724802]
[1743550763197,0.28473012,611.44,611.1,1.22724802]
[1743550764805,0.28473012,611.44,611.12,1.22724802]
[1743550765800,0.895,611.47,611.12,1.22724802]
[1743550766202,0.28472779,611.46,611.12,1.22724802]
[1743550768812,0.895,611.47,611.12,1.22724802]
[1743550769005,0.28473012,611.45,611.12,1.22724802]
[1743550769213,0.30071862,611.44,611.12,1.22724802]
[1743550770815,0.30071862,611.44,611.08,1.22724802]
[1743550771816,0.30071862,611.46,611.08,1.22724802]
[1743550772016,0.28476507,611.43,611.08,1.22724802]
[1743550772217,0.30071862,611.42,611.08,1.22724802]
[1743550773124,0.30076732,611.41,610.97,1.22724802]
[1743550773317,0.30076732,611.4,610.97,1.22724802]
[1743550773516,0.30076732,611.39,610.97,1.22724802]
[1743550773722,0.30076732,611.38,610.97,1.22724802]
[1743550773918,0.30076732,611.42,610.97,1.22724802]
[1743550774226,0.30076732,611.41,610.97,1.22724802]
[1743550774421,0.30076732,611.4,610.97,1.22724802]
[1743550774618,0.30075939,611.39,610.93,1.22724802]
[1743550774821,0.30075939,611.42,610.93,1.22724802]
[1743550775022,0.30075939,611.41,610.93,1.22724802]
[1743550775222,0.30075939,611.4,610.93,1.22724802]
[1743550775422,0.30075939,611.39,610.93,1.22724802]
[1743550775723,0.28476507,611.43,610.93,1.22724802]
[1743550775724,0.30075939,611.38,610.93,1.22724802]
[1743550775924,0.30075939,611.42,610.93,1.22724802]
[1743550776118,0.30075939,611.37,610.93,1.22724802]
[1743550776322,0.28476507,611.43,610.93,1.22724802]
[1743550776323,0.30075939,611.36,610.93,1.22724802]
[1743550776518,0.30075939,611.42,610.93,1.22724802]
[1743550778024,0.30075939,611.42,610.96,1.22724802]
[1743550778326,0.58554427,611.41,610.96,1.22724802]
[1743550778525,0.30075939,611.4,610.96,1.22724802]
[1743550779525,0.30075669,611.39,610.96,1.22724802]
[1743550779721,0.30075669,611.4,610.96,1.22724802]
[1743550779928,0.30075669,611.39,610.96,1.22724802]
[1743550780122,0.30075669,611.4,610.96,1.22724802]
[1743550780431,0.30075669,611.39,610.96,1.22724802]
[1743550780629,0.30075669,611.4,610.96,1.22724802]
[1743550780828,0.30075669,611.39,610.96,1.22724802]
[1743550781021,0.28478371,611.39,610.96,1.22724802]
[1743550783129,0.28478371,611.39,610.83,1.22724802]
[1743550784030,1.164,611.42,610.83,1.22724802]
[1743550784230,0.2847977,611.38,610.83,1.22724802]
[1743550784536,0.2847977,611.38,610.82,1.22724802]
[1743550786829,1.164,611.42,610.82,1.22724802]
[1743550787131,0.28479886,611.37,610.82,1.22724802]
[1743550789829,1.164,611.42,610.82,1.22724802]
[1743550790027,1.164,611.42,610.8,1.22724802]
[1743550790231,0.28479886,611.36,610.8,1.22724802]
[1743550792131,0.28479886,611.36,610.73,1.22724802]
[1743550792931,1.164,611.42,610.73,1.22724802]
[1743550793329,0.28480935,611.35,610.73,1.22724802]
[1743550793630,0.28480935,611.35,610.77,1.22724802]
[1743550795837,0.895,611.47,610.77,1.22724802]
[1743550796338,0.28479886,611.46,610.77,1.22724802]
[1743550798939,0.895,611.47,610.77,1.22724802]
[1743550799142,0.28479886,611.45,610.77,1.22724802]
[1743550799836,1.48079886,611.45,610.77,1.22724802]
[1743550801944,1.196,611.45,610.77,1.22724802]
[1743550802240,0.28478255,611.44,610.96,1.22724802]
[1743550803943,0.28478255,611.44,610.99,1.22724802]
[1743550804843,1.196,611.45,610.99,1.22724802]
[1743550805345,0.28476157,611.43,610.99,1.22724802]
[1743550806137,0.30074002,611.42,610.99,1.22724802]
[1743550807036,0.28476157,611.43,610.99,1.22724802]
[1743550807238,0.3007426,611.42,610.99,1.22724802]
[1743550807740,0.3007426,611.42,611.05,1.22724802]
[1743550808141,0.3007426,611.44,611.05,1.22724802]
[1743550808344,0.28475691,611.41,611.05,1.22724802]
[1743550810244,0.28475691,611.41,611.04,1.22724802]
[1743550810844,2.029,611.45,611.04,1.22724802]
[1743550811345,0.28476507,611.44,611.04,1.22724802]
[1743550812247,0.30078528,611.43,611.04,1.22724802]
[1743550812838,0.30078528,611.43,611.0,1.22724802]
[1743550814043,0.30078528,611.44,611.0,1.22724802]
[1743550814240,2.029,611.45,611.0,1.22724802]
[1743550814441,0.30077981,611.44,611.0,1.22724802]
[1743550815247,0.28477672,611.43,611.0,1.22724802]
[1743550815447,0.30077981,611.42,611.0,1.22724802]
[1743550815643,0.28477672,611.43,610.89,1.22724802]
[1743550816549,0.30077995,611.42,610.89,1.22724802]
[1743550816849,0.833,611.45,610.89,1.22724802]
[1743550817041,0.30077953,611.44,610.89,1.22724802]
[1743550817849,0.30077953,611.44,610.88,1.22724802]
[1743550818151,0.28478954,611.43,610.88,1.22724802]
[1743550819353,0.28478954,611.43,610.87,1.22724802]
[1743550819555,1.117,611.42,610.87,1.22724802]
[1743550820348,0.28479536,611.41,610.87,1.22724802]
[1743550820554,0.3007797,611.4,610.87,1.22724802]
[1743550823055,0.3007797,611.4,610.92,1.22724802]